fUSD/lending_fUSD_20240416
["ID","MTS","AMOUNT","RATE_DAILY","PERIOD"]
[322783060,1713285043443,-6202.52211866,0.00018878,2]
[322783068,1713285043508,-1967.9312064,0.00018878,2]
[322783070,1713285043520,-1356.38339359,0.00018878,2]
[322783071,1713285043531,-542.28755908,0.00018878,2]
[322783072,1713285043542,-7195.25160001,0.00018878,2]
[322783075,1713285046331,-541.0,0.00017981,2]
[322783076,1713285046341,-9707.99422842,0.00018878,2]
[322783077,1713285046353,-278.16216001,0.00018878,2]
[322783078,1713285046443,-500.0,0.000186,6]
[322783079,1713285046453,-1278.58355955,0.00018878,2]
[322783080,1713285046499,-189492.39769569,0.00018878,2]
[322783237,1713285434233,190.9,0.00026308,120]
[322783240,1713285708778,365.44,0.00015617,2]
[322783241,1713286208042,347.16,0.00015465,2]
[322783274,1713286232701,-298.8266,0.0001714,2]
[322783275,1713286232713,-98.7234,0.0001714,2]
[322783276,1713286232723,-200.0,0.00017264,2]
[322783277,1713286232732,-74.1046,0.00017288,2]
[322783278,1713286232768,-1087.0502,0.00017288,2]
[322783279,1713286232780,-3616.6752,0.00017288,2]
[322783280,1713286232790,-1563.32464845,0.00017316,2]
[322783281,1713286232803,-178.10535155,0.00017316,2]
[322783282,1713286232813,-93.19098779,0.00017316,2]
[322783283,1713286232824,-156.80901221,0.00017316,2]
[322783284,1713286232834,-1489.34,0.00017322,2]
[322783285,1713286232843,-756.2,0.00017346,2]
[322783286,1713286232852,-500.0,0.00017353,2]
[322783287,1713286232862,-156.82117763,0.00017362,2]
[322783288,1713286232871,-519.07030047,0.000174,2]
[322783289,1713286232880,-2956.0,0.000174,2]
[322783290,1713286232889,-160.02,0.00017446,2]
[322783291,1713286232898,-1158.60786321,0.00017462,2]
[322783292,1713286232907,-300.0,0.00017479,2]
[322783293,1713286232916,-150.0,0.00017479,2]
[322783294,1713286232925,-150.99,0.00017506,2]
[322783295,1713286232935,-696.53,0.00017509,2]
[322783296,1713286232944,-19.41464648,0.00017538,2]
[322783297,1713286232956,-171.48535352,0.00017538,2]
[322783298,1713286232966,-805.38674391,0.00017548,2]
[322783299,1713286232984,-194.61325609,0.00017548,2]
[322783300,1713286232994,-347.16,0.00017729,2]
[322783301,1713286233007,-499.99,0.00017899,2]
[322783302,1713286233016,-163.96,0.00017943,2]
[322783303,1713286233025,-368.98612641,0.00017983,2]
[322783304,1713286233046,-457.08997388,0.00017983,2]
[322783305,1713286233057,-1684.59202001,0.00017983,2]
[322783312,1713286238640,-818.90254157,0.00017983,2]
[322783313,1713286238656,-1211.64000001,0.00017983,2]
[322783314,1713286238668,-22091.47300556,0.00017983,2]
[322783315,1713286238679,-1795.50202561,0.00017983,2]
[322783316,1713286238690,-3073.7629553,0.00017983,2]
[322783323,1713286242477,-250.66500001,0.00017983,2]
[322783324,1713286242492,-1287.68447108,0.00017983,2]
[322783325,1713286242506,-5921.90268736,0.00017983,2]
[322783326,1713286242528,-302.93500001,0.00017983,2]
[322783327,1713286242540,-723.43815905,0.00017983,2]
[322783328,1713286242588,-303.09746393,0.00017983,2]
[322783329,1713286242599,-597.09674235,0.00017983,2]
[322783330,1713286242646,-667.24950563,0.00017983,2]
[322783365,1713286243645,-4987.78787142,0.00017983,2]
[322783366,1713286243812,-1369.86248918,0.00017983,2]
[322783381,1713286246459,-603.07305064,0.00017983,2]
[322783382,1713286246520,-473.725425,0.00017983,2]
[322783384,1713286347387,942.58900408,0.00028,30]
[322783385,1713286397453,1745.83354019,0.00013485,2]
[322783386,1713286405989,-244.25184656,0.00017797,2]
[322783387,1713286406011,-1000.0,0.00017798,2]
[322783388,1713286406034,-723.42,0.00017972,3]
[322783389,1713286406060,-8032.32815344,0.00017981,2]
[322783391,1713286467136,250.0,0.000137,2]
[322783397,1713286704375,375.68,0.00015399,2]
[322783398,1713286818183,221.89412981,0.00015542,2]
[322783399,1713286825950,250.0,0.000137,2]
[322783401,1713287020819,-244.25184656,0.00016437,2]
[322783402,1713287020839,-398.75526945,0.00016438,2]
[322783403,1713287020860,-200.0,0.0001701,2]
[322783404,1713287020881,-155.55605703,0.00017022,2]
[322783405,1713287020902,-300.0,0.0001708,2]
[322783406,1713287020925,-150.0,0.0001708,2]
[322783407,1713287020945,-2551.43682696,0.00017081,7]
[322783408,1713287021399,-4000.0,0.00017081,7]
[322783409,1713287021980,-2616.46400527,0.00017081,7]
[322783410,1713287022002,-172.48,0.00017123,2]
[322783411,1713287022026,-555.49,0.00017163,2]
[322783412,1713287022050,-655.56599473,0.0001722,2]
[322783413,1713287022442,-1000.56400527,0.0001722,2]
[322783414,1713287022463,-378.1,0.00017293,2]
[322783415,1713287022484,-2621.33599473,0.00017354,2]
[322783416,1713287022849,-686.66400527,0.00017354,2]
[322783417,1713287022872,-2914.93,0.00017354,2]
[322783418,1713287022894,-398.40599473,0.00017528,2]
[322783419,1713287023274,-4000.0,0.00017528,2]
[322783420,1713287023714,-4000.0,0.00017528,2]
[322783421,1713287024156,-611.59400527,0.00017528,2]
[322783422,1713287024177,-650.94,0.00017528,2]
[322783423,1713287024197,-375.68,0.00017663,2]
[322783424,1713287024220,-160.0,0.00017735,2]
[322783425,1713287024242,-500.0,0.000178,2]
[322783426,1713287024261,-1701.78599473,0.00017802,2]
[322783427,1713287024558,-4000.0,0.00017802,2]
[322783428,1713287024976,-185.21400527,0.00017802,2]
[322783429,1713287024997,-2703.0,0.00017802,2]
[322783430,1713287025019,-541.0,0.00017802,2]
[322783431,1713287025042,-570.78599473,0.00017802,2]
[322783432,1713287025397,-683.21400527,0.00017802,2]
[322783433,1713287025418,-1228.0,0.00017802,2]
[322783434,1713287025441,-1054.0,0.00017802,2]
[322783435,1713287025463,-462.705,0.00017802,2]
[322783436,1713287025485,-572.08099473,0.00017802,2]
[322783437,1713287025821,-234.91900527,0.00017802,2]
[322783438,1713287025843,-609.0,0.00017802,2]
[322783439,1713287025863,-2083.447,0.00017802,2]
[322783440,1713287025884,-282.266,0.00017802,2]
[322783441,1713287025904,-790.36799473,0.00017802,2]
[322783442,1713287026227,-1651.63200527,0.00017802,2]
[322783443,1713287026250,-2348.36799473,0.00017802,2]
[322783444,1713287026624,-729.63200527,0.00017802,2]
[322783445,1713287026647,-399.0,0.00017802,2]
[322783446,1713287026669,-150.684,0.00017802,2]
[322783447,1713287026691,-1472.0,0.00017802,2]
[322783448,1713287026712,-150.615,0.00017802,2]
[322783449,1713287026733,-216.0,0.00017802,2]
[322783450,1713287026949,-882.06899473,0.00017802,2]
[322783451,1713287027082,-755.93100527,0.00017802,2]
[322783452,1713287027103,-355.0,0.00017802,2]
[322783453,1713287027124,-444.544,0.00017802,2]
[322783454,1713287027145,-2444.52499473,0.00017879,2]
[322783455,1713287027434,-4000.0,0.00017879,2]
[322783456,1713287027818,-4000.0,0.00017879,2]
[322783457,1713287028250,-4000.0,0.00017879,2]
[322783458,1713287028657,-4000.0,0.00017879,2]
[322783459,1713287029036,-4000.0,0.00017879,2]
[322783460,1713287029502,-4000.0,0.00017879,2]
[322783461,1713287029836,-4000.0,0.00017879,2]
[322783462,1713287030540,-4000.0,0.00017879,2]
[322783463,1713287031559,-4000.0,0.00017879,2]
[322783464,1713287031647,-4000.0,0.00017879,2]
[322783465,1713287103639,-1163.4872,0.00016981,2]
[322783466,1713287103661,-150.91,0.00017753,2]
[322783467,1713287103683,-150.91,0.00017845,2]
[322783468,1713287103704,-1163.9402,0.00017879,2]
[322783470,1713287240168,-2000.0,0.00017779,2]
[322783471,1713287241520,-500.0,0.00017779,2]
[322783472,1713287241541,-209.7696,0.0001778,2]
[322783473,1713287241562,-153.26539704,0.00017782,2]
[322783474,1713287241581,-1136.96500296,0.00017807,2]
[322783475,1713287242147,-1220.80057449,0.00017807,2]
[322783476,1713287242170,-181.158063,0.00017808,2]
[322783477,1713287242194,-598.04136251,0.00017877,2]
[322783479,1713287242840,-2000.0,0.00017877,2]
[322783480,1713287243613,-189.05,0.00017405,2]
[322783481,1713287243636,-1810.95,0.00017877,2]
[322783482,1713287244288,-170.08099943,0.00017877,2]
[322783483,1713287244309,-150.0,0.00017878,2]
[322783484,1713287244330,-1460.85156733,0.00017879,2]
[322783485,1713287244350,-219.06743324,0.00017879,2]
[322783486,1713287245093,-854.83387643,0.00017879,2]
[322783487,1713287245113,-650.24342149,0.00017879,2]
[322783488,1713287245139,-494.92270208,0.00017879,2]
[322783489,1713287246009,-2000.0,0.00017879,2]
[322783490,1713287246903,-2000.0,0.00017879,2]
[322783491,1713287247965,-2000.0,0.00017879,2]
[322783492,1713287248947,-859.1088,0.00017779,2]
[322783493,1713287248969,-1140.8912,0.00017879,2]
[322783494,1713287256890,-574.3411,0.00017879,2]
[322783495,1713287266265,98.39233,0.00015555,2]
[322783496,1713287266289,251.36767,0.00015555,2]
[322783497,1713287283831,-155.0,0.00017818,2]
[322783498,1713287283851,-546.7168,0.00017818,2]
[322783499,1713287287783,-2000.0,0.000178,2]
[322783500,1713287289648,-2000.0,0.000178,2]
[322783501,1713287290652,-1977.27826535,0.000178,2]
[322783502,1713287290673,-22.72173465,0.00017818,2]
[322783503,1713287291227,-490.30746741,0.00017818,2]
[322783504,1713287291250,-349.76,0.00017819,2]
[322783505,1713287291272,-1159.93253259,0.00017879,2]
[322783506,1713287292187,-2000.0,0.00017879,2]
[322783549,1713287432846,-0.00014845,0.00017424,2]
[322783550,1713287432858,-310.0229,0.00017424,2]
[322783551,1713287432870,-305.98,0.00017424,2]
[322783552,1713287432882,-606.947185,0.00017424,2]
[322783553,1713287432892,-18.225215,0.00017425,2]
[322783554,1713287432904,-657.2268,0.00017425,2]
[322783555,1713287432925,-164.547985,0.00017425,2]
[322783556,1713287432935,-2357.76557745,0.00017443,2]
[322783557,1713287432945,-784.39215876,0.00017443,2]
[322783558,1713287432955,-607.89585329,0.00017443,2]
[322783559,1713287432965,-575.81,0.00017445,2]
[322783560,1713287432974,-1556.4986,0.00017779,2]
[322783561,1713287432984,-24942.95660658,0.00017879,2]
[322783562,1713287433012,-1291.2324261,0.00017879,2]
[322783563,1713287433032,-806.0244192,0.00017879,2]
[322783564,1713287433044,-5966.4487835,0.00017879,2]
[322783565,1713287433056,-690.52760089,0.00017879,2]
[322783570,1713287437584,-607.89585329,0.00017423,2]
[322783571,1713287437594,-2169.58885418,0.00017879,2]
[322783572,1713287437605,-857.75,0.00017879,2]
[322783573,1713287437617,-2016.18810793,0.00017879,2]
[322783574,1713287437629,-10124.40143783,0.00017879,2]
[322783575,1713287437641,-13258.20781676,0.00017879,2]
[322783576,1713287437652,-8493.86789089,0.00017879,2]
[322783577,1713287437666,-665.38673542,0.00017879,2]
[322783578,1713287437678,-279.25341899,0.00017879,2]
[322783579,1713287437689,-1257.21442518,0.00017879,2]
[322783580,1713287437700,-11923.00999209,0.00017879,2]
[322783581,1713287437712,-6949.48210294,0.00017879,2]
[322783582,1713287437723,-6852.2,0.00017879,2]
[322783583,1713287437735,-1862.50161371,0.00017879,2]
[322783584,1713287437767,-4843.61870921,0.00017879,2]
[322783585,1713287437882,-1621.88109768,0.00017879,2]
[322783586,1713287437894,-140782.04453166,0.00017879,2]
[322783587,1713287437903,-3324.672,0.00017879,2]
[322783588,1713287437913,-4510.04970991,0.0001788,2]
[322783589,1713287437922,-3709.34414345,0.0001788,2]
[322783590,1713287437931,-92520.939,0.0001788,2]
[322783591,1713287437940,-108439.1591,0.00017882,2]
[322783593,1713287437949,-1556.98195137,0.00017884,2]
[322783594,1713287437958,-169.56,0.00017913,2]
[322783595,1713287437967,-150.91,0.00017938,2]
[322783596,1713287437977,-15315.31632804,0.00017981,2]
[322783597,1713287437987,-151.0,0.00017983,2]
[322783598,1713287437996,-151.0,0.00017983,2]
[322783600,1713287438005,-151.0,0.00017983,2]
[322783602,1713287438014,-151.0,0.00017983,2]
[322783604,1713287438023,-151.0,0.00017983,2]
[322783606,1713287438033,-151.0,0.00017983,2]
[322783608,1713287438043,-151.0,0.00017983,2]
[322783609,1713287438054,-167.981359,0.00017983,2]
[322783611,1713287438068,-151.0,0.00017983,2]
[322783614,1713287438079,-498.9,0.00017983,2]
[322783616,1713287438090,-498.9,0.00017983,2]
[322783617,1713287438100,-151.0,0.00017983,2]
[322783619,1713287438109,-151.0,0.00017983,2]
[322783620,1713287438119,-151.0,0.00017983,2]
[322783621,1713287438131,-1124.99942,0.00017983,2]
[322783622,1713287438140,-151.0,0.00017983,2]
[322783623,1713287438150,-151.0,0.00017983,2]
[322783624,1713287438159,-151.0,0.00017983,2]
[322783625,1713287438168,-151.0,0.00017983,2]
[322783626,1713287438177,-200.0,0.00017983,2]
[322783627,1713287438186,-151.0,0.00017983,2]
[322783628,1713287438195,-151.0,0.00017983,2]
[322783629,1713287438204,-151.0,0.00017983,2]
[322783630,1713287438212,-151.0,0.00017983,2]
[322783631,1713287438222,-151.0,0.00017983,2]
[322783632,1713287438232,-151.0,0.00017983,2]
[322783633,1713287438242,-151.0,0.00017983,2]
[322783634,1713287438251,-151.0,0.00017983,2]
[322783635,1713287438260,-151.0,0.00017983,2]
[322783636,1713287438269,-151.0,0.00017983,2]
[322783637,1713287438279,-151.0,0.00017983,2]
[322783638,1713287438290,-39818.39011543,0.00017983,2]
[322783639,1713287438299,-150.0,0.00017984,2]
[322783640,1713287438309,-150.0,0.00017984,2]
[322783641,1713287438326,-150.0,0.00017984,2]
[322783642,1713287438335,-1392.0,0.00017984,2]
[322783643,1713287438344,-2292.0,0.00017984,2]
[322783644,1713287438353,-968.0,0.00017984,2]
[322783645,1713287438362,-461.0,0.00017984,2]
[322783646,1713287438371,-163.96,0.00017988,2]
[322783647,1713287438381,-155.0,0.00018,2]
[322783648,1713287438390,-4510.04970984,0.00018015,2]
[322783649,1713287438399,-3709.34414342,0.00018015,2]
[322783650,1713287438408,-150.91,0.0001803,2]
[322783651,1713287438417,-163.96,0.00018033,2]
[322783652,1713287438426,-5887.0,0.00018035,2]
[322783653,1713287438435,-2703.0,0.00018035,2]
[322783654,1713287438444,-5723.0,0.00018035,2]
[322783655,1713287438453,-1054.0,0.00018035,2]
[322783656,1713287438462,-536.0,0.00018055,2]
[322783657,1713287438471,-553.0,0.00018055,2]
[322783658,1713287438481,-1124.99942,0.0001807,2]
[322783659,1713287438490,-3002.52093825,0.00018104,2]
[322783660,1713287438499,-150.91,0.00018123,2]
[322783661,1713287438509,-1506.68483071,0.00018133,2]
[322783662,1713287438518,-1556.98195131,0.00018172,2]
[322783663,1713287438527,-150.91,0.00018215,2]
[322783664,1713287438536,-4510.04970984,0.0001825,2]
[322783665,1713287438546,-3709.34414342,0.0001825,2]
[322783666,1713287438555,-150.91,0.00018308,2]
[322783667,1713287438566,-1124.99943,0.0001838,2]
[322783668,1713287438575,-150.91,0.000184,2]
[322783669,1713287438584,-1556.98195131,0.0001846,2]
[322783670,1713287438593,-4510.04970984,0.00018486,2]
[322783671,1713287438601,-3709.34414342,0.00018486,2]
[322783672,1713287438611,-151.0,0.00018486,2]
[322783673,1713287438620,-151.0,0.00018486,2]
[322783674,1713287438629,-151.0,0.00018486,2]
[322783675,1713287438639,-151.0,0.00018486,2]
[322783676,1713287438652,-151.0,0.00018486,2]
[322783677,1713287438661,-151.0,0.00018486,2]
[322783678,1713287438669,-150.91,0.00018493,2]
[322783679,1713287438678,-179.281061,0.000185,2]
[322783680,1713287438689,-153.934131,0.000185,2]
[322783681,1713287438698,-151.0,0.000185,2]
[322783682,1713287438707,-151.0,0.000185,2]
[322783683,1713287438716,-151.0,0.000185,2]
[322783684,1713287438726,-500.0,0.000185,6]
[322783685,1713287438735,-150.91,0.00018585,2]
[322783686,1713287438745,-1000.0,0.000186,6]
[322783687,1713287438754,-150.91,0.00018678,2]
[322783688,1713287438763,-1239.379,0.0001868,2]
[322783689,1713287438772,-1000.0,0.000187,2]
[322783690,1713287438781,-1000.0,0.000187,2]
[322783691,1713287438790,-696.0,0.000187,2]
[322783692,1713287438799,-1000.0,0.000187,2]
[322783693,1713287438807,-151.0,0.000187,2]
[322783694,1713287438820,-1500.0,0.000187,6]
[322783695,1713287438830,-1124.99942,0.000187,2]
[322783696,1713287438838,-151.0,0.000187,2]
[322783697,1713287438847,-290.422456,0.000187,2]
[322783698,1713287438856,-151.0,0.000187,2]
[322783699,1713287438865,-151.0,0.000187,2]
[322783700,1713287438873,-4510.04970984,0.00018722,2]
[322783701,1713287438882,-3709.34414342,0.00018722,2]
[322783702,1713287438894,-151.0,0.00018722,2]
[322783703,1713287438902,-200.0,0.00018726,2]
[322783704,1713287438911,-500.0,0.00018726,2]
[322783705,1713287438920,-200.0,0.00018727,2]
[322783706,1713287438929,-1000.0,0.00018727,2]
[322783707,1713287438938,-640.514282,0.00018727,2]
[322783708,1713287438947,-500.0,0.00018727,2]
[322783709,1713287438956,-200.0,0.00018727,2]
[322783710,1713287438965,-151.0,0.00018727,2]
[322783711,1713287438974,-1556.98195131,0.00018748,2]
[322783712,1713287438983,-322.19591055,0.00018767,2]
[322783713,1713287438993,-468.46990928,0.00018768,2]
[322783714,1713287439002,-151.0,0.00018777,2]
[322783715,1713287439010,-151.0,0.00018777,2]
[322783716,1713287439020,-232.585577,0.00018777,2]
[322783717,1713287439029,-151.0,0.00018777,2]
[322783718,1713287439038,-500.0,0.00018779,2]
[322783719,1713287439047,-151.0,0.0001878,2]
[322783720,1713287439055,-161.503713,0.0001878,2]
[322783721,1713287439066,-230.505423,0.0001878,2]
[322783722,1713287439075,-151.0,0.0001878,2]
[322783723,1713287439083,-281.258702,0.0001878,2]
[322783724,1713287439095,-468.46990926,0.00018784,2]
[322783725,1713287439106,-1000.0,0.000188,2]
[322783726,1713287439114,-1000.0,0.000188,2]
[322783727,1713287439123,-1000.0,0.000188,2]
[322783728,1713287439132,-188.80232167,0.000188,2]
[322783729,1713287439141,-493.0,0.000188,2]
[322783730,1713287439150,-151.0,0.000188,2]
[322783731,1713287439159,-498.9,0.000188,2]
[322783732,1713287439169,-498.9,0.000188,2]
[322783733,1713287439178,-208.05430802,0.000188,2]
[322783734,1713287439186,-7500.0,0.000188,2]
[322783735,1713287439195,-468.46990926,0.000188,2]
[322783736,1713287439204,-2000.0,0.000188,6]
[322783737,1713287439213,-153.9320803,0.00018809,2]
[322783738,1713287439222,-153.26539704,0.00018841,2]
[322783739,1713287439231,-151.34,0.00018858,2]
[322783740,1713287439240,-151.34,0.00018858,2]
[322783741,1713287439248,-115404.3055135,0.00018868,2]
[322783742,1713287439257,-5410.7799458,0.00018868,2]
[322783743,1713287439266,-151.0,0.00018868,2]
[322783744,1713287439275,-10258.853127,0.00018876,2]
[322783745,1713287439283,-151.0,0.00018876,2]
[322783746,1713287439292,-151.0,0.00018876,2]
[322783747,1713287439301,-657.5301529,0.00018876,2]
[322783748,1713287439310,-151.0,0.00018876,2]
[322783749,1713287439324,-498.9,0.00018876,2]
[322783750,1713287439333,-498.9,0.00018876,2]
[322783751,1713287439342,-160.252547,0.00018876,2]
[322783753,1713287439351,-151.0,0.00018876,2]
[322783755,1713287439360,-151.0,0.00018876,2]
[322783756,1713287439369,-151.0,0.00018876,2]
[322783757,1713287439378,-151.0,0.00018876,2]
[322783758,1713287439387,-151.0,0.00018876,2]
[322783759,1713287439396,-206.98170683,0.00018877,2]
[322783760,1713287439406,-4899.30370386,0.00018877,2]
[322783762,1713287439415,-151.0,0.00018877,2]
[322783763,1713287439424,-553.0,0.00018877,2]
[322783765,1713287439434,-151.0,0.00018877,2]
[322783767,1713287439443,-4113.11742697,0.00018881,2]
[322783769,1713287439453,-151.34,0.0001889,2]
[322783771,1713287439462,-151.34,0.0001889,2]
[322783773,1713287439470,-151.34,0.0001889,2]
[322783776,1713287439480,-151.34,0.0001889,2]
[322783777,1713287439489,-151.34,0.0001889,2]
[322783779,1713287439498,-151.34,0.0001889,2]
[322783781,1713287439506,-151.34,0.0001889,2]
[322783782,1713287439516,-151.34,0.0001889,2]
[322783783,1713287439525,-151.34,0.0001889,2]
[322783784,1713287439534,-151.34,0.0001889,2]
[322783785,1713287439543,-151.34,0.0001889,2]
[322783786,1713287439552,-151.34,0.0001889,2]
[322783787,1713287439561,-1774.21776063,0.00018898,2]
[322783788,1713287439572,-685.59588165,0.00018898,2]
[322783789,1713287439581,-780.34286168,0.00018898,2]
[322783790,1713287439590,-155.31595881,0.00018898,2]
[322783791,1713287439599,-387.22658651,0.00018898,2]
[322783792,1713287439609,-536.60711953,0.00018898,2]
[322783793,1713287439618,-155.2899372,0.00018898,2]
[322783794,1713287439627,-155.0,0.00018898,2]
[322783795,1713287439636,-200.64323917,0.00018898,2]
[322783796,1713287439646,-164.29423485,0.00018898,2]
[322783797,1713287439656,-405.1994349,0.00018898,2]
[322783798,1713287439667,-161.29586727,0.00018898,2]
[322783799,1713287439676,-155.27388055,0.00018898,2]
[322783800,1713287439686,-155.355736,0.00018898,2]
[322783801,1713287439695,-387.1264966,0.00018898,2]
[322783802,1713287439705,-3379.09496254,0.00018898,2]
[322783803,1713287439715,-3000.25935731,0.00018899,2]
[322783804,1713287439723,-746.0,0.000189,2]
[322783805,1713287439733,-23105.0,0.000189,2]
[322783806,1713287439742,-1000.0,0.000189,2]
[322783807,1713287439752,-1000.0,0.000189,2]
[322783808,1713287439761,-117342.79341134,0.000189,3]
[322783809,1713287440080,-283.43058592,0.000189,3]
[322783818,1713287440586,-3057.32243985,0.000189,3]
[322783841,1713287442263,-1037.73530295,0.00017779,2]
[322783843,1713287442275,-723.42,0.00017779,2]
[322783846,1713287442286,-555.76682748,0.00017779,2]
[322783848,1713287442297,-431.69654486,0.00017779,2]
[322783851,1713287442312,-258.144,0.00017779,2]
[322783980,1713287443178,-250.37481032,0.00017779,2]
[322783981,1713287443192,-520.90363455,0.00017779,2]
[322784019,1713287447181,-578.55555676,0.00017779,2]
[322784020,1713287447239,-358.2385076,0.00017779,2]
[322784022,1713287530751,-2850.28452,0.0001769,2]
[322784023,1713287530773,-149.71548,0.00017779,2]
[322784024,1713287531553,-3000.0,0.00017779,2]
[322784025,1713287532013,-3000.0,0.00017779,2]
[322784026,1713287532588,-2938.98303548,0.00017779,2]
[322784027,1713287532609,-61.01696452,0.00017779,2]
[322784028,1713287532918,-3000.0,0.00017779,2]
[322784029,1713287533544,-437.20793548,0.00017779,2]
[322784030,1713287533566,-2562.79206452,0.00017779,2]
[322784031,1713287533881,-3000.0,0.00017779,2]
[322784032,1713287534158,-3000.0,0.00017779,2]
[322784033,1713287534556,-3000.0,0.00017779,2]
[322784034,1713287534908,-3000.0,0.00017779,2]
[322784035,1713287535155,-3000.0,0.00017779,2]
[322784036,1713287535644,-3000.0,0.00017779,2]
[322784037,1713287535874,-3000.0,0.00017779,2]
[322784038,1713287536328,-3000.0,0.00017779,2]
[322784039,1713287536943,-3000.0,0.00017779,2]
[322784040,1713287537616,-3000.0,0.00017779,2]
[322784041,1713287538471,-3000.0,0.00017779,2]
[322784042,1713287558015,605.31621099,0.00014174,2]
[322784043,1713287583498,865.63697681,0.00014174,2]
[322784044,1713287589480,942.30968993,0.00014174,2]
[322784045,1713287593887,155.0,0.00014174,2]
[322784046,1713287599723,549.96697057,0.00014174,2]
[322784047,1713287603476,284.8024817,0.00014174,2]
[322784048,1713287603500,654.4,0.00014174,2]
[322784049,1713287603523,3.10720823,0.00014174,2]
[322784050,1713287610047,186.37994129,0.00014174,2]
[322784051,1713287621475,464.91285048,0.00014174,2]
[322784052,1713287621498,477.39683945,0.00014174,2]
[322784053,1713287628782,200.0,0.00019178,10]
[322784054,1713287643553,942.30968993,0.00014174,2]
[322784055,1713287665490,942.30968993,0.00014174,2]
[322784056,1713287681481,939.94695019,0.00014174,2]
[322784057,1713287847182,179.50518047,0.00015487,2]
[322784058,1713287867677,201.94709627,0.00015487,2]
[322784059,1713288004195,150.0,0.00015487,2]
[322784060,1713288004401,150.0,0.00015487,2]
[322784061,1713288004584,150.0,0.00015487,2]
[322784062,1713288004805,150.0,0.00015487,2]
[322784063,1713288005010,150.0,0.00015487,2]
[322784064,1713288005207,150.0,0.00015487,2]
[322784065,1713288005651,150.0,0.00015487,2]
[322784066,1713288005890,150.0,0.00015487,2]
[322784067,1713288006100,150.0,0.00015487,2]
[322784068,1713288006312,150.0,0.00015487,2]
[322784069,1713288006523,150.0,0.00015487,2]
[322784070,1713288006745,150.0,0.00015487,2]
[322784071,1713288006947,150.0,0.00015487,2]
[322784072,1713288007189,150.0,0.00015487,2]
[322784073,1713288007391,150.0,0.00015487,2]
[322784074,1713288007601,222.18183667,0.00015487,2]
[322784075,1713288324546,363.29,0.00014927,2]
[322784076,1713288445398,339.88655198,0.000137,2]
[322784077,1713288450871,-4176.62593463,0.00032278,30]
[322784078,1713288450893,-8078.78854361,0.00032278,30]
[322784079,1713288450916,-500.0,0.00032278,30]
[322784080,1713288450938,-500.0,0.00032278,30]
[322784081,1713288450961,-188.0,0.00032278,30]
[322784082,1713288450984,-188.0,0.00032278,30]
[322784083,1713288451006,-188.0,0.00032278,30]
[322784084,1713288451031,-200.0,0.00032278,30]
[322784085,1713288451057,-176.0,0.00032278,30]
[322784086,1713288451078,-200.0,0.00032278,30]
[322784087,1713288451099,-344.86612879,0.00032278,30]
[322784088,1713288451120,-323.97094548,0.00032278,30]
[322784089,1713288451142,-587.0,0.00032278,30]
[322784090,1713288451164,-5000.0,0.00032278,30]
[322784091,1713288451186,-476.95558655,0.00032278,30]
[322784092,1713288451207,-356.48917567,0.00032278,30]
[322784093,1713288451231,-806.09017168,0.00032278,30]
[322784094,1713288451253,-823.89795451,0.00032278,30]
[322784095,1713288451278,-1000.0,0.00032278,30]
[322784096,1713288451300,-689.92611621,0.00032278,30]
[322784097,1713288451323,-163.96652958,0.00032278,120]
[322784098,1713288451345,-403.15007478,0.00032278,30]
[322784099,1713288451367,-363.79540856,0.00032278,30]
[322784100,1713288451389,-807.00928326,0.00032278,30]